bitfinex/quotes_ETHUSD_20220308
["timestamp","ask_amount","ask_price","bid_price","bid_amount"]
[1646702180571,0.58743767,2541.6,2540.7,0.98428]
[1646702180773,0.00530767,2541.0,2540.7,1.96847]
[1646702180973,0.00530767,2541.0,2540.8,1.96817]
[1646702181572,0.00096,2541.8,2540.8,1.96817]
[1646702181819,0.00530767,2541.0,2540.8,1.96817]
[1646702182222,0.00530767,2541.0,2540.7,0.98428]
[1646702182419,0.00530767,2541.0,2540.9,0.98415]
[1646702182820,0.00096,2541.5,2540.9,0.98415]
[1646702183019,0.00530771,2541.0,2540.9,0.98415]
[1646702183221,0.00096,2541.5,2541.1,0.0013503]
[1646702183421,0.1967,2542.0,2541.1,0.9854103]
[1646702183422,0.00096,2541.9,2541.1,0.9854103]
[1646702183622,0.58931736,2542.0,2541.1,2.3627703]
[1646702183827,0.00096,2542.3,2541.1,0.9853103]
[1646702184020,0.59111676,2542.3,2541.1,0.9853103]
[1646702184221,0.59015676,2542.2,2541.1,0.0013503]
[1646702184421,4.09015676,2542.2,2541.1,0.0013503]
[1646702184621,1.02508244,2541.5,2541.1,0.0013503]
[1646702185121,1.02508244,2541.5,2541.1,0.9854403]
[1646702185576,0.00096,2541.9,2541.1,0.9854403]
[1646702185577,0.00514811,2541.4,2541.1,0.9854403]
[1646702185974,0.00514811,2541.4,2541.1,1.9694103]
[1646702186176,0.00514811,2541.4,2541.1,2.3628103]
[1646702186379,0.00096,2542.2,2541.2,2.36101]
[1646702186577,1.01142886,2542.3,2541.6,0.94322503]
[1646702186775,0.00514815,2541.4,2541.2,0.3934]
[1646702187176,0.00514815,2541.4,2541.3,1.96759]
[1646702187377,0.00514815,2541.4,2541.3,0.98383]
[1646702187678,1.08111624,2541.9,2541.2,1.96765]
[1646702187875,0.00514811,2541.4,2541.2,1.96765]
[1646702188478,0.00514811,2541.4,2541.1,0.9854503]
[1646702188884,1.08111624,2541.9,2541.1,0.9854503]
[1646702189077,0.00503227,2541.4,2541.1,0.9854503]
[1646702189525,0.00503227,2541.4,2541.1,1.9694203]
[1646702189723,0.00503227,2541.4,2541.1,0.9854503]
[1646702189923,1.08111624,2541.9,2541.1,0.9854503]
[1646702190123,0.59062297,2541.8,2541.1,0.9854503]
[1646702190325,0.00503231,2541.4,2541.1,0.9854503]
[1646702190727,0.00503231,2541.4,2541.1,1.9694103]
[1646702190927,0.00503231,2541.4,2541.2,1.96756]
[1646702191129,0.00096,2542.2,2541.2,3.93514]
[1646702191331,0.59074903,2542.3,2541.5,0.98382]
[1646702191632,0.00096,2542.4,2541.1,0.0013503]
[1646702191633,1.19361973,2542.1,2541.1,0.0013503]
[1646702191827,1.19361973,2542.1,2541.1,0.9853403]
[1646702191828,0.59074903,2542.0,2541.1,0.9853403]
[1646702192028,0.59074903,2542.0,2541.1,0.7353403]
[1646702192530,0.59074903,2542.0,2541.2,0.98402]
[1646702192729,1.22850742,2541.6,2541.2,0.98402]
[1646702192971,0.00096,2542.2,2541.2,0.98402]
[1646702193172,0.59108524,2542.2,2541.2,0.98402]
[1646702193373,0.71281139,2542.4,2541.2,0.98402]
[1646702193374,0.59108524,2542.1,2541.2,0.98402]
[1646702193571,0.71281139,2542.4,2541.2,0.98402]
[1646702193572,0.59108524,2542.0,2541.2,0.98402]
[1646702193773,0.59108524,2541.9,2541.2,0.98402]
[1646702193973,0.59611777,2541.8,2541.2,0.98402]
[1646702194176,0.87690445,2541.8,2541.2,0.98402]
[1646702194774,0.59175677,2541.7,2541.2,0.98402]
[1646702194974,0.00309304,2541.6,2541.2,0.98402]
[1646702195978,0.59175677,2541.7,2541.2,0.98402]
[1646702196378,0.00502185,2541.5,2541.2,0.98402]
[1646702197226,0.87187192,2541.8,2541.2,0.98402]
[1646702197426,0.00502189,2541.5,2541.2,0.98402]
[1646702198225,0.00502189,2541.5,2541.2,1.96794]
[1646702198427,0.87187192,2541.8,2541.2,0.98392]
[1646702198630,0.59256497,2541.7,2541.3,0.98393]
[1646702198827,0.00487189,2541.5,2541.3,0.98393]
[1646702199226,0.00487189,2541.5,2541.1,1.9691903]
[1646702199629,0.71281139,2542.1,2541.1,1.9691903]
[1646702199929,0.00486455,2541.5,2541.1,1.9691903]
[1646702200774,0.00096,2541.9,2541.1,1.9691903]
[1646702200975,0.00486463,2541.4,2541.1,1.9691903]
[1646702201576,0.00486463,2541.4,2541.1,0.0013503]
[1646702201776,0.00486463,2541.4,2541.1,0.9854303]
[1646702201979,0.91637264,2541.7,2541.1,0.9854303]
[1646702202177,0.59328709,2541.6,2541.1,0.9854303]
[1646702202377,0.00501466,2541.4,2541.1,0.9854303]
[1646702202578,1.5630653,2541.3,2541.1,0.0013503]
[1646702202780,0.59328709,2541.2,2541.1,0.0013503]
[1646702203181,0.59367165,2541.2,2541.1,0.0013503]
[1646702203380,0.00096,2541.7,2541.1,0.0013503]
[1646702203582,0.71185139,2542.0,2541.1,0.0013503]
[1646702203583,0.00502029,2541.3,2541.1,0.0013503]
[1646702203980,0.00502029,2541.3,2541.1,0.92117057]
[1646702204230,0.00502029,2541.3,2541.1,0.0013503]
[1646702204420,0.00096,2541.8,2541.1,0.0013503]
[1646702204623,1.30562433,2541.8,2541.1,0.0013503]
[1646702204819,0.00502026,2541.3,2541.1,0.0013503]
[1646702205020,0.59377294,2541.2,2541.1,0.0013503]
[1646702207128,0.00501486,2541.3,2541.1,0.0013503]
[1646702207327,0.59377294,2541.2,2541.1,0.0013503]
[1646702208471,0.59686598,2541.3,2541.1,0.0013503]
[1646702208668,0.59377294,2541.2,2541.1,0.0013503]
[1646702210369,1.30562433,2541.6,2541.1,0.0013503]
[1646702210577,1.25562433,2541.5,2541.1,0.0013503]
[1646702210776,0.00529449,2541.3,2541.1,0.0013503]
[1646702210975,0.59377294,2541.2,2541.1,0.0013503]
[1646702215470,0.95573891,2541.3,2541.1,0.0013503]
[1646702215674,1.54951185,2541.3,2541.1,0.0013503]
[1646702216275,1.54449126,2541.2,2541.1,0.0013503]
[1646702216475,0.59377294,2541.2,2541.1,0.0013503]
[1646702216975,1.54449126,2541.2,2541.1,0.0013503]
[1646702217174,0.59377294,2541.2,2541.1,0.0013503]
[1646702217580,0.00519851,2541.3,2541.1,0.0013503]
[1646702217877,0.59377294,2541.2,2541.1,0.9854103]
[1646702218276,0.00519855,2541.3,2541.1,0.9854103]
[1646702218478,0.00519855,2541.3,2541.1,0.0013503]
[1646702218479,0.59377294,2541.2,2541.1,0.0013503]
[1646702218877,0.95071832,2541.6,2540.8,0.35033506]
[1646702219078,5.5,2541.5,2540.8,0.35033506]
[1646702219324,0.95071832,2541.6,2540.8,1.24593585]
[1646702219325,0.00500286,2541.3,2540.8,1.24593585]
[1646702219524,0.00500286,2541.3,2540.8,0.35033506]
[1646702219525,0.59377294,2541.2,2540.8,0.35033506]
[1646702219725,0.00500286,2541.3,2540.8,0.35033506]
[1646702219924,0.59377294,2541.2,2540.8,0.35033506]
[1646702220129,1.54449126,2541.6,2540.6,0.1967]
[1646702220327,1.54449126,2541.6,2540.5,1.96839]
[1646702220328,0.00500301,2541.1,2540.5,1.96839]
[1646702220530,0.59377294,2541.0,2540.5,1.96839]
[1646702220730,0.59377294,2540.9,2540.5,1.96839]
[1646702221030,0.59377294,2540.9,2540.3,0.1967]
[1646702221232,0.59377294,2540.9,2540.4,0.98190977]
[1646702221434,0.59377294,2540.8,2540.5,0.98190977]
[1646702221630,0.59377294,2540.7,2540.6,0.98190977]
[1646702221832,0.59377294,2540.7,2540.6,4.48190977]
[1646702222032,0.00500264,2541.1,2540.6,4.48190977]
[1646702222231,0.5954546,2541.0,2540.7,0.98190977]
[1646702222733,0.5954546,2540.9,2540.7,0.98190977]
[1646702222967,0.00501339,2541.1,2540.7,0.98190977]
[1646702223168,0.59557114,2541.0,2540.7,0.98190977]
[1646702223569,0.59557114,2541.0,2540.8,0.98419]
[1646702223770,0.59557114,2541.0,2540.9,0.98190977]
[1646702223971,0.59557114,2541.0,2540.8,0.98419]
[1646702224170,0.59557114,2540.9,2540.8,0.98419]
[1646702224370,0.59557114,2541.0,2540.5,1.9684]
[1646702224569,0.00501339,2541.1,2540.6,0.98153683]
[1646702224570,0.59557114,2540.9,2540.6,0.98153683]
[1646702224771,0.00501339,2541.1,2540.4,1.96851]
[1646702224772,0.59557114,2540.8,2540.4,1.96851]
[1646702224971,0.59557114,2540.7,2540.5,0.9816162]
[1646702225374,0.59557114,2540.6,2540.5,0.9816162]
[1646702225575,1.6084271,2540.9,2540.2,0.9816162]
[1646702225774,0.59575228,2540.8,2540.3,0.9816162]
[1646702225975,0.59575228,2540.8,2540.4,0.9816162]
[1646702226277,0.59575228,2540.8,2540.1,1.57672516]
[1646702226477,1.58021228,2540.8,2540.2,0.98200373]
[1646702226734,0.59575228,2540.7,2540.2,0.98200373]
[1646702227726,0.59575228,2540.7,2540.3,0.9844]
[1646702227929,0.59575228,2540.7,2539.9,0.02005812]
[1646702227930,0.73463125,2540.2,2539.9,0.02005812]
[1646702228127,0.59575228,2540.1,2539.9,0.02005812]
[1646702228526,0.59575228,2540.1,2539.5,0.1968]
[1646702228727,0.59575228,2540.1,2539.7,0.98462]
[1646702228927,0.73463125,2540.2,2539.9,0.3934]
[1646702229126,0.73463125,2540.2,2540.0,0.98252644]
[1646702229527,0.73463125,2540.2,2540.1,0.98252644]
[1646702229728,1.33037005,2540.2,2540.1,0.98252644]
[1646702229928,1.33037005,2540.2,2539.8,1.01412221]
[1646702230128,0.73463125,2540.2,2539.9,0.98199988]
[1646702230775,0.59543733,2540.1,2539.9,0.98199988]
[1646702231174,0.59543733,2540.1,2539.9,1.96655988]
[1646702231388,0.59543733,2540.1,2540.0,0.98232813]
[1646702231873,0.73463125,2540.2,2540.0,0.98232813]
[1646702232074,0.73463125,2540.2,2540.0,2.95118813]
[1646702232275,0.73463125,2540.2,2540.1,1.37572813]
[1646702232475,0.36244027,2540.2,2540.1,5.86014813]
[1646702232674,0.00476271,2541.1,2540.3,0.3934]
[1646702232874,0.00476271,2541.1,2540.5,0.3934]
[1646702232875,0.58138991,2541.0,2540.5,0.3934]
[1646702233075,0.00476271,2541.1,2540.7,0.3934]
[1646702233280,0.00096,2541.5,2540.9,1.52413337]
[1646702233477,0.98424,2541.5,2540.9,1.52413337]
[1646702233678,0.58134355,2541.4,2540.9,0.3934]
[1646702234319,0.58134355,2541.4,2540.8,0.98419]
[1646702234919,0.00502649,2541.3,2540.8,0.98419]
[1646702235120,0.58134355,2541.2,2540.8,0.98419]
[1646702235320,0.58134355,2541.2,2540.8,1.57249265]
[1646702235926,0.58637015,2541.1,2540.8,0.58825265]
[1646702236126,0.58134355,2541.0,2540.8,0.58825265]
[1646702236723,1.53406094,2541.0,2540.6,1.96835]
[1646702236925,1.53406094,2541.0,2540.2,2.97705745]
[1646702236926,0.58134355,2540.9,2540.2,2.97748665]
[1646702237124,1.2997083,2540.9,2540.2,2.97748665]
[1646702237525,1.2997083,2540.9,2540.2,1.00877665]
[1646702237725,1.2997083,2540.9,2540.0,0.61258356]
[1646702237969,1.2997083,2540.8,2540.1,0.99806308]
[1646702238172,0.58134355,2540.7,2540.1,0.99806308]
[1646702238375,0.98458,2540.6,2539.9,0.02023197]
[1646702238584,0.58134355,2540.5,2539.9,0.02023197]
[1646702238972,0.95247553,2540.2,2539.9,0.02023197]
[1646702239177,0.58134355,2540.1,2539.9,0.01376997]
[1646702239375,0.58134355,2540.1,2539.2,1.2388]
[1646702239576,0.58134355,2540.1,2539.3,0.99825742]
[1646702239775,0.58134355,2540.1,2539.5,0.02023321]
[1646702240074,0.58134355,2540.1,2539.6,1.98294742]
[1646702240273,0.58134355,2540.0,2539.7,0.99825742]
[1646702240475,0.71836475,2540.5,2539.7,0.99825742]
[1646702240476,0.58134355,2539.9,2539.7,0.99825742]
[1646702240676,0.71836475,2540.6,2539.7,0.99825742]
[1646702240878,1.29947485,2540.7,2539.7,0.99825742]
[1646702241084,1.58513822,2540.6,2539.7,0.99825742]
[1646702241277,0.5811101,2540.5,2539.7,0.99825742]
[1646702242022,1.5658201,2540.5,2539.7,0.99825742]
[1646702242221,0.5811101,2540.4,2539.7,1.19505742]
[1646702242423,0.5811101,2540.4,2539.9,0.98457]
[1646702242622,0.71836475,2540.9,2540.0,0.99825742]
[1646702242823,0.5811101,2540.8,2540.0,0.99825742]
[1646702243022,5.6581,2541.1,2540.0,0.99825742]
[1646702243023,0.5811101,2540.7,2540.0,0.99825742]
[1646702243223,0.5811101,2540.6,2540.0,0.99825742]
[1646702243423,0.58612171,2540.5,2540.1,0.9845]
[1646702243625,0.5811101,2540.4,2540.1,0.9845]
[1646702244423,0.5811101,2540.3,2539.9,0.9845]
[1646702244626,0.5811101,2540.3,2539.8,2.45995]
[1646702244627,0.5811101,2540.2,2540.0,0.99730009]
[1646702244924,0.00479416,2540.5,2540.1,0.99730009]
[1646702245124,0.00479416,2540.5,2539.6,2.15460307]
[1646702245125,1.67713655,2540.4,2539.6,2.15460307]
[1646702245325,1.67713655,2540.4,2539.7,1.19490339]
[1646702245326,0.58110324,2540.3,2539.7,1.19490339]
[1646702245578,0.58110324,2540.3,2539.8,0.99810339]
[1646702245976,0.00479422,2540.5,2539.6,3.13907307]
[1646702245977,0.58110324,2540.2,2539.6,3.13907307]
[1646702246278,0.58110324,2540.1,2539.8,0.98462]
[1646702246475,0.00479422,2540.5,2539.9,0.99770147]
[1646702246676,0.581161,2540.4,2539.9,0.99770147]
[1646702246875,0.581161,2540.3,2539.9,0.99770147]
[1646702247076,0.581161,2540.2,2539.9,0.99770147]
[1646702247378,0.581161,2540.1,2540.0,0.98452]
[1646702247578,0.00479378,2540.5,2540.0,0.98452]
[1646702247776,1.85931315,2540.6,2539.6,1.96914]
[1646702248176,0.00469354,2540.5,2539.6,1.96914]
[1646702249077,2.84398315,2540.6,2539.6,1.96914]
[1646702249326,0.00471163,2540.5,2539.6,1.96914]
[1646702249723,0.00471163,2540.5,2539.9,1.14309165]
[1646702250328,1.1409484,2540.6,2539.9,1.14309165]
[1646702250529,0.0047118,2540.5,2539.9,1.14309165]
[1646702250830,0.0047118,2540.5,2539.8,0.98459]
[1646702251433,0.9846594,2540.5,2539.6,1.96914]
[1646702251829,0.98937732,2540.5,2539.6,1.96914]
[1646702252029,1.70774207,2540.5,2539.6,1.96914]
[1646702252231,0.98937732,2540.5,2539.6,1.91914]
[1646702252630,0.9846594,2540.5,2539.6,1.91914]
[1646702252829,0.98937936,2540.5,2539.6,1.91914]
[1646702253476,0.98937936,2540.5,2539.6,2.9454681]
[1646702253874,0.9846594,2540.5,2539.6,2.9454681]
[1646702254177,0.98937936,2540.5,2539.6,2.9454681]
[1646702254675,0.98937936,2540.5,2539.6,1.91914]
[1646702254876,0.98937936,2540.5,2539.5,0.02360912]
[1646702254877,2.69246411,2540.5,2539.5,0.02360912]
[1646702255075,0.9848143,2540.2,2539.3,0.1968]
[1646702255275,0.9848143,2540.2,2539.5,0.0236192]
[1646702255476,1.2848143,2540.2,2539.5,0.0236192]
[1646702255679,1.5848143,2540.2,2539.5,0.0236192]
[1646702256077,0.92764303,2539.7,2539.5,0.0236192]
[1646702256280,0.92764303,2539.7,2539.3,0.1968]
[1646702256478,0.9848658,2539.9,2539.5,0.00472324]
[1646702257123,0.9848658,2539.9,2539.3,0.17041769]
[1646702257523,0.9848658,2539.9,2539.3,0.15152324]
[1646702257727,0.99361996,2539.7,2539.5,0.00472307]
[1646702257925,1.97873936,2539.7,2539.5,6.92e-05]
[1646702258324,2.27873936,2539.7,2539.5,6.92e-05]
[1646702258626,2.27873936,2539.7,2538.5,0.394]
[1646702258826,1.70348415,2539.7,2538.4,1.27358492]
[1646702259033,3.60111832,2540.0,2538.6,0.3934]
[1646702259034,2.6504,2540.0,2538.6,0.3934]
[1646702259230,2.6504,2540.0,2538.8,0.3934]
[1646702259426,2.6504,2540.0,2539.0,0.3934]
[1646702259626,3.0,2540.1,2538.9,3.6968]
[1646702259827,0.3934,2540.4,2538.9,0.1968]
[1646702259828,0.71836475,2540.2,2538.9,0.1968]
[1646702260027,0.71836475,2540.2,2539.0,1.96959]
[1646702260028,1.87331287,2539.8,2539.0,1.96959]
[1646702260230,1.87331287,2539.8,2538.7,3.5]
[1646702260231,1.87335317,2539.8,2538.7,3.5]
[1646702260473,1.87335317,2539.8,2538.6,1.2075]
[1646702260676,1.87335317,2539.8,2538.6,4.7075]
[1646702260877,1.87335317,2539.8,2538.6,1.2075]
[1646702261078,1.87335317,2539.8,2538.6,2.19251]
[1646702261380,1.97,2539.9,2538.6,2.19251]
[1646702261381,1.12059465,2539.3,2538.6,2.19251]
[1646702261679,1.12059465,2539.3,2538.7,0.985]
[1646702262680,1.12059465,2539.3,2538.9,0.00499079]
[1646702263481,1.12059465,2539.3,2538.3,0.13819997]
[1646702263680,1.42059465,2539.3,2538.3,0.13819997]
[1646702263881,1.42059465,2539.3,2539.0,0.00510263]
[1646702264079,1.42059465,2539.3,2537.0,5.24082]
[1646702264080,5.5,2539.1,2537.0,5.24082]
[1646702264360,0.9855936,2538.5,2537.5,0.1969]
[1646702264562,0.9855936,2538.5,2537.3,0.197]
[1646702264563,0.491,2538.4,2537.3,0.197]
[1646702264756,0.491,2538.4,2537.5,0.5]
[1646702264956,0.791,2538.4,2537.5,0.5]
[1646702265156,0.3,2538.6,2537.6,3.5]
[1646702265355,0.3,2538.6,2537.1,0.38862141]
[1646702265356,0.3,2538.6,2537.7,0.1968]
[1646702265560,4.23447689,2538.7,2537.6,4.0902]
[1646702265760,4.23447689,2538.7,2537.6,0.5902]
[1646702266059,0.98541,2538.6,2537.6,0.1968]
[1646702266265,0.94566773,2538.2,2537.6,0.1968]
[1646702266461,0.94566773,2538.2,2537.4,0.197]
[1646702267460,0.94566773,2538.2,2537.7,0.00527965]
[1646702268078,0.98559,2538.1,2537.7,0.00527965]
[1646702268278,0.9855766,2538.1,2537.4,1.18251]
[1646702268678,1.9710709,2538.5,2537.8,0.00527953]
[1646702268878,4.17432,2538.7,2537.8,0.00527953]
[1646702268879,2.8888,2538.7,2537.8,0.00527953]
[1646702269080,0.0052775,2538.8,2537.8,0.00527953]
[1646702269281,0.0052775,2538.8,2538.0,0.3934]
[1646702269480,0.0052775,2538.8,2538.2,13.50839]
[1646702269685,0.13819997,2539.3,2538.2,13.50839]
[1646702269686,2.8105,2539.4,2538.4,0.3934]
[1646702269882,2.8105,2539.4,2538.4,0.491]
[1646702270081,0.00527793,2538.8,2538.2,0.50527923]
[1646702270483,0.00527793,2538.8,2538.2,0.00527923]
[1646702270889,1.88412044,2539.0,2538.2,0.99953569]
[1646702271087,0.00527818,2538.8,2538.4,0.00527906]
[1646702272030,1.19890104,2539.0,2538.3,0.98512]
[1646702272242,0.00498172,2538.8,2538.5,0.00498235]
[1646702273236,1.19890104,2539.0,2538.3,0.98512]
[1646702273437,0.00312084,2538.8,2538.3,0.98512]
[1646702274436,0.3,2539.0,2538.3,0.98512]
[1646702274637,0.00312072,2538.8,2538.3,0.98512]
[1646702274840,0.00312072,2538.8,2538.3,0.982966]
[1646702275588,1.13452438,2539.0,2538.3,0.982966]
[1646702275789,0.00527577,2538.8,2538.4,0.00527655]
[1646702276192,0.00527577,2538.8,2538.4,0.99034655]
[1646702276391,0.00527577,2538.8,2538.5,0.3934]
[1646702276793,2.8105,2539.4,2538.3,1.0]
[1646702277193,2.8105,2539.4,2538.1,1.52008824]
[1646702277194,0.99592958,2539.3,2538.5,1.07772748]
[1646702277994,0.9851275,2539.2,2538.5,1.07557216]
[1646702278395,0.9851275,2539.2,2538.5,1.07772748]
[1646702278599,0.9851275,2539.2,2538.5,0.00215532]
[1646702279096,3.1105,2539.4,2538.5,0.98723532]
[1646702279355,0.6021001,2539.3,2538.5,0.98508]
[1646702279555,0.00527342,2539.0,2538.5,2.05737956]
[1646702279958,0.00527342,2539.0,2538.5,3.04237956]
[1646702280355,3.1105,2539.4,2539.0,0.00653763]
[1646702280356,2.8105,2539.4,2539.0,0.00653763]
[1646702280955,7.35811602,2539.4,2539.0,0.00653763]
[1646702281157,5.08740229,2539.3,2539.0,0.00653763]
[1646702281357,0.6027557,2539.2,2539.0,0.00653763]
[1646702281756,0.9851304,2539.3,2539.0,0.00653763]
[1646702281956,0.90275751,2539.2,2539.0,0.00653763]
[1646702282158,0.3,2539.2,2539.0,0.00653763]
[1646702282357,0.99026614,2539.3,2539.0,0.00653763]
[1646702282358,0.00513574,2539.3,2539.0,0.00653763]
[1646702282997,2.8105,2539.4,2539.0,0.00653763]
[1646702283188,0.13819997,2539.6,2539.0,0.00653763]
[1646702283389,0.00513574,2539.3,2539.0,0.00653763]
[1646702283794,0.60284111,2539.2,2539.0,0.00653763]
[1646702284189,0.60284111,2539.1,2539.0,0.00653763]
[1646702284590,0.3,2539.1,2539.0,0.00653763]
[1646702284791,2.13056012,2539.1,2539.0,0.00653763]
[1646702285293,0.60284111,2539.1,2539.0,0.00653763]
[1646702288432,2.57339401,2539.1,2539.0,0.00653763]
[1646702288834,2.87339401,2539.1,2539.0,0.00653763]
[1646702289638,3.87339401,2539.1,2539.0,0.00653763]
[1646702290036,0.90284111,2539.1,2539.0,0.00653763]
[1646702290236,0.60284111,2539.1,2539.0,0.00653763]
[1646702291886,0.90284111,2539.1,2539.0,0.00653763]
[1646702292285,1.99249181,2539.1,2539.0,0.00653763]
[1646702294933,3.96309251,2539.1,2539.0,0.00653763]
[1646702296137,8.46309251,2539.1,2539.0,3.763e-05]
[1646702296335,9.17557349,2539.1,2539.0,3.763e-05]
[1646702296536,5.87237349,2539.1,2539.0,3.763e-05]
[1646702296736,8.65989251,2539.1,2539.0,3.763e-05]
[1646702296934,4.07024181,2539.1,2539.0,3.763e-05]
[1646702297135,3.87344181,2539.1,2539.0,3.763e-05]
[1646702297536,2.87344181,2539.1,2539.0,3.763e-05]
[1646702297997,2.57344181,2539.1,2539.0,3.763e-05]
[1646702298182,0.60284111,2539.1,2539.0,3.763e-05]
[1646702298487,5.5,2538.9,2537.7,1.1993]
[1646702298686,5.21196144,2538.8,2537.7,1.1993]
[1646702298983,1.31856144,2538.7,2538.5,0.00470263]
[1646702299184,0.60284111,2538.6,2538.5,2.63e-06]
[1646702299385,1.31856144,2538.6,2538.5,2.63e-06]
[1646702299589,1.31856144,2538.6,2537.8,0.01881522]
[1646702299590,0.60284111,2538.6,2537.8,0.01881522]
[1646702299787,0.3934,2538.2,2537.0,1.31679575]
[1646702299988,4.49624111,2538.1,2537.1,0.97359997]
[1646702300287,4.49624111,2538.1,2537.2,0.97393552]
[1646702300288,1.12578653,2537.8,2537.2,0.97393552]
[1646702300595,4.10284111,2537.7,2536.9,0.4137655]
[1646702300791,1.58882111,2537.6,2536.9,0.4137655]
[1646702301091,0.60284111,2537.5,2536.9,0.4137655]
[1646702301739,1.1089452,2537.1,2536.9,0.4137655]
[1646702302043,2.094953,2537.1,2536.9,0.4137655]
[1646702302238,2.394953,2537.1,2536.9,0.4137655]
[1646702302646,0.60584265,2537.0,2536.9,0.09897562]
[1646702303241,2.394953,2537.1,2536.9,0.09897562]
[1646702303543,0.59999179,2537.0,2536.9,0.09897562]
[1646702303742,2.394953,2537.1,2536.9,0.09897562]
[1646702306688,2.394953,2537.1,2536.9,7.562e-05]
[1646702306689,2.2721578,2537.1,2536.9,7.562e-05]
[1646702306888,0.59871683,2537.0,2536.9,7.562e-05]
[1646702307290,0.59871683,2537.0,2536.9,4.386e-05]
[1646702307689,2.57124683,2537.0,2536.9,4.386e-05]
[1646702308090,3.96464683,2537.0,2535.9,1.97229]
[1646702308290,2.9587713,2536.8,2535.9,1.97229]
[1646702308489,0.3,2536.7,2535.9,1.97229]
[1646702308688,0.9862585,2536.5,2535.9,1.97229]
[1646702309090,1.2862585,2536.5,2535.9,1.97229]
[1646702309330,0.3,2536.5,2535.7,1.2335]
[1646702309536,0.3,2536.5,2535.8,0.9761544]
[1646702309739,1.20161034,2536.4,2535.6,3.15535]
[1646702309935,1.20161034,2536.4,2535.7,0.97474501]
[1646702310138,2.18794464,2536.4,2535.7,0.97474501]
[1646702310338,1.9726501,2536.2,2535.7,0.97474501]
[1646702310539,1.9726501,2536.2,2535.6,1.97245]
[1646702310939,1.9726501,2536.2,2535.6,5.47245]
[1646702311142,3.158,2536.7,2535.7,0.97459287]
[1646702311347,0.9859756,2536.8,2535.8,3.8934]
[1646702311542,0.9859756,2536.8,2535.9,2.36538]
[1646702311741,0.9859756,2536.8,2535.9,1.97198]
[1646702311939,1.10773905,2536.9,2536.1,0.88170522]
[1646702312139,1.10773905,2536.9,2536.1,0.00526892]
[1646702312339,1.40773905,2536.9,2536.1,0.00526892]
[1646702312741,0.9860142,2536.6,2536.1,0.00526892]
[1646702312985,0.9860142,2536.6,2535.9,3.5]
[1646702313185,0.9860142,2536.6,2536.4,0.00526867]
[1646702313786,0.95640401,2536.5,2536.4,0.00526867]
[1646702314184,1.94266021,2536.5,2535.7,1.1924]
[1646702314386,0.95640401,2536.5,2536.4,0.00526867]
[1646702315391,0.95640401,2536.5,2535.7,1.97237]
[1646702315588,0.95640401,2536.5,2536.3,0.00526871]
[1646702316187,1.94271001,2536.5,2536.3,0.00526871]
[1646702316588,0.95640401,2536.5,2535.7,1.97237]
[1646702316832,1.25640401,2536.5,2536.3,0.00511069]
[1646702317433,0.9862622,2536.4,2536.3,1.069e-05]
[1646702317732,0.9862622,2536.4,2535.3,3.277674]
[1646702317733,1.2862622,2536.4,2535.4,0.98636]
[1646702317931,0.3,2536.3,2535.4,0.98636]
[1646702318933,0.3,2536.4,2535.4,0.98636]
[1646702319133,1.9727589,2536.1,2535.4,0.98636]
[1646702319734,0.9863795,2536.0,2535.4,0.98636]
[1646702319934,0.9863795,2536.0,2535.3,3.277674]
[1646702320135,4.144,2536.4,2535.3,2.046074]
[1646702320486,4.144,2536.4,2535.6,0.9916593]
[1646702320487,2.7506,2536.4,2535.6,0.9916593]
[1646702320890,2.7506,2536.4,2535.6,2.9642893]
[1646702321091,1.13538239,2536.2,2535.6,2.9642893]
[1646702321293,2.9476,2536.4,2535.6,2.95902]
[1646702321491,2.9476,2536.4,2535.9,0.00526909]
[1646702321692,2.9476,2536.4,2536.0,0.98637]
[1646702321892,0.197,2536.4,2536.0,0.98637]
[1646702322096,0.3,2536.4,2536.0,0.98637]
[1646702322292,1.40463537,2536.4,2536.0,0.98637]
[1646702322493,1.10463537,2536.4,2536.0,0.98637]
[1646702322894,1.10463537,2536.4,2536.1,0.99161892]
[1646702323693,0.197,2536.3,2536.1,0.98635]
[1646702324092,1.10463537,2536.4,2536.1,0.98635]
[1646702324093,1.30163537,2536.4,2536.1,0.99161888]
[1646702324735,0.197,2536.4,2536.1,0.99161888]
[1646702324931,0.197,2536.4,2536.0,0.98635]
[1646702325335,0.197,2536.4,2536.1,0.00509501]
[1646702325537,0.197,2536.4,2536.1,0.99137501]
[1646702325737,10.0552,2537.2,2536.2,3.5]
[1646702325936,10.0552,2537.2,2536.4,1.2315874]
[1646702326139,5.7828,2537.2,2536.4,1.2315874]
[1646702326537,5.7828,2537.2,2536.4,0.2455274]
[1646702326538,6.7689245,2537.2,2536.4,0.2455274]
[1646702326840,5.7828,2537.2,2536.4,0.2455274]
[1646702327037,1.08673803,2536.7,2536.4,0.2455274]
[1646702327979,1.38673803,2536.7,2536.4,0.2455274]
[1646702328182,0.197,2536.6,2536.4,0.2455274]
[1646702329679,0.197,2536.6,2536.4,2.74e-05]
[1646702329680,0.688,2536.6,2536.4,2.74e-05]
[1646702329883,0.60044579,2536.5,2536.4,2.74e-05]
[1646702330082,3.56182049,2536.5,2536.4,2.74e-05]
[1646702330279,4.56182049,2536.5,2536.4,2.74e-05]
[1646702330483,5.5,2536.4,2535.8,0.01921827]
[1646702330685,0.688,2536.3,2535.8,0.01921827]
[1646702330888,1.67472,2536.3,2535.3,2.046534]
[1646702331086,0.93345528,2536.0,2535.3,2.046534]
[1646702331286,0.491,2535.9,2535.3,2.046534]
[1646702331934,0.491,2535.9,2535.3,0.073434]
[1646702331935,1.4776964,2535.9,2535.3,0.073434]
[1646702332133,5.5,2535.8,2535.2,0.0106074]
[1646702332338,0.491,2535.7,2535.2,0.0106074]
[1646702332537,0.491,2535.7,2535.5,5.398e-05]
[1646702332735,7.4738132,2535.6,2535.0,0.18267281]
[1646702333035,1.25955844,2535.4,2535.0,0.18267281]
[1646702334035,0.4971,2535.4,2535.0,0.18267281]
[1646702334236,0.3,2535.2,2535.0,0.18267281]
[1646702334637,0.9868736,2535.3,2535.0,0.18267281]
[1646702334838,9.963,2536.1,2535.0,2.54941281]
[1646702335045,10.98885417,2536.1,2535.3,1.12832864]
[1646702335240,1.02585417,2536.1,2535.3,2.11474864]
[1646702335483,2.01228047,2536.1,2535.3,1.12832864]
[1646702335690,2.01228047,2536.1,2535.2,0.3]
[1646702335691,1.02585417,2536.1,2535.2,0.3]
[1646702335888,1.02585417,2536.1,2535.3,0.98648]
[1646702336289,1.32585417,2536.1,2535.3,0.98648]
[1646702336789,0.9865625,2535.9,2535.3,0.98648]
[1646702337187,0.3,2535.9,2535.3,0.98648]
[1646702338288,0.9865422,2535.8,2535.3,0.98648]